bitfinex/quotes_SOLUSD_20250219
["timestamp","ask_amount","ask_price","bid_price","bid_amount"]
[1739986249319,101.64964886,171.85,171.76,5.822]
[1739986249320,26.45700688,171.79,171.76,5.822]
[1739986249649,26.45700688,171.79,171.76,62.58618884]
[1739986249952,26.45700688,171.77,171.76,56.76418884]
[1739986250274,26.45700688,171.78,171.75,92.38]
[1739986250435,1.0,171.91,171.79,6.3069]
[1739986250632,1.0,171.9,171.85,26.45700688]
[1739986250824,1.063,171.92,171.86,26.45700688]
[1739986251025,27.45700688,171.91,171.85,26.45700688]
[1739986251352,1.0,171.91,171.87,32.27520688]
[1739986251537,1.063,171.92,171.87,32.27520688]
[1739986251729,1.0,171.91,171.87,32.27520688]
[1739986252142,1.063,171.92,171.87,32.27520688]
[1739986252349,1.063,171.92,171.88,26.45700688]
[1739986252726,0.063,171.92,171.89,26.45700688]
[1739986253351,0.063,171.92,171.9,26.45700688]
[1739986253547,1.063,171.92,171.89,26.45700688]
[1739986253737,0.063,171.92,171.89,26.45700688]
[1739986254855,0.063,171.92,171.9,5.8173]
[1739986255849,1.0,171.89,171.86,5.8186]
[1739986256643,1.0,171.89,171.86,32.27560688]
[1739986257046,1.0,171.9,171.86,32.27560688]
[1739986257245,19.64964886,171.91,171.86,32.27560688]
[1739986257744,1.0,171.89,171.86,5.8186]
[1739986257948,1.0,171.9,171.86,32.27560688]
[1739986258144,19.64964886,171.91,171.86,32.27560688]
[1739986258348,19.64964886,171.91,171.87,26.45700688]
[1739986258560,1.0,171.91,171.87,26.45700688]
[1739986259144,1.063,171.92,171.87,26.45700688]
[1739986259350,1.45722841,171.9,171.88,26.45700688]
[1739986260081,1.45722841,171.9,171.89,5.8176]
[1739986260437,1.45722841,171.9,171.89,32.27460688]
[1739986261050,1.063,171.92,171.89,32.27460688]
[1739986261246,1.063,171.92,171.89,5.8176]
[1739986261451,0.063,171.92,171.89,32.27460688]
[1739986261856,1.063,171.92,171.89,32.27460688]
[1739986262345,0.063,171.92,171.89,32.27460688]
[1739986262874,1.063,171.92,171.89,32.27460688]
[1739986263373,1.063,171.92,171.89,5.8176]
[1739986264053,0.063,171.92,171.9,26.45700688]
[1739986264243,18.71264886,171.92,171.91,5.8169]
[1739986264457,0.063,171.92,171.9,26.45700688]
[1739986264673,1.063,171.92,171.89,26.45700688]
[1739986264875,1.063,171.92,171.88,5.818]
[1739986264876,0.063,171.92,171.88,32.27500688]
[1739986265176,0.063,171.92,171.89,26.45700688]
[1739986265350,0.063,171.92,171.9,26.45700688]
[1739986266176,1.0,171.9,171.87,56.76418884]
[1739986266376,1.0,171.89,171.87,56.76418884]
[1739986266549,1.0,171.88,171.87,56.76418884]
[1739986266750,1.0,171.88,171.85,5.8189]
[1739986267067,1.0,171.84,171.81,5.8202]
[1739986267383,1.0,171.79,171.75,26.45700688]
[1739986267561,1.0,171.79,171.74,32.27970688]
[1739986267770,1.0,171.77,171.74,32.27970688]
[1739986267948,1.0,171.77,171.74,5.8227]
[1739986268149,1.0,171.79,171.76,26.45700688]
[1739986268347,1.0,171.79,171.74,5.8227]
[1739986268545,1.0,171.77,171.74,62.58688884]
[1739986268756,1.0,171.78,171.74,89.04389572]
[1739986268958,1.0,171.8,171.76,26.45700688]
[1739986269160,1.0,171.81,171.77,26.45700688]
[1739986269366,1.0,171.81,171.74,62.58688884]
[1739986269367,19.64964886,171.82,171.78,26.45700688]
[1739986269590,1.0,171.84,171.8,26.45700688]
[1739986269756,1.0,171.86,171.82,26.45700688]
[1739986269951,1.0,171.87,171.83,26.45700688]
[1739986270152,1.0,171.85,171.83,5.8194]
[1739986270649,1.0,171.85,171.82,26.45700688]
[1739986270858,1.0,171.85,171.81,32.27730688]
[1739986271071,1.0,171.83,171.8,62.58478884]
[1739986271382,1.0,171.82,171.78,26.45700688]
[1739986272256,1.0,171.82,171.79,5.821]
[1739986272869,1.0,171.84,171.8,26.45700688]
[1739986273069,1.0,171.85,171.82,26.45700688]
[1739986273262,1.0,171.83,171.79,89.04219572]
[1739986273586,1.0,171.82,171.79,5.821]
[1739986274180,1.0,171.8,171.79,5.821]
[1739986274483,1.0,171.82,171.79,26.45700688]
[1739986274777,1.0,171.81,171.77,46.83300688]
[1739986275274,1.0,171.81,171.77,32.27870688]
[1739986275464,1.0,171.8,171.77,5.8217]
[1739986275867,1.0,171.79,171.77,5.8217]
[1739986276475,1.0,171.8,171.77,32.27870688]
[1739986277383,1.0,171.78,171.77,5.8217]
[1739986278560,1.0,171.77,171.74,5.8227]
[1739986279283,1.0,171.78,171.74,32.27970688]
[1739986279482,1.0,171.78,171.75,26.45700688]
[1739986279685,1.0,171.79,171.75,26.45700688]
[1739986280069,1.0,171.78,171.75,26.45700688]
[1739986280310,1.0,171.8,171.75,26.45700688]
[1739986280582,1.0,171.79,171.77,5.8217]
[1739986280959,1.0,171.8,171.77,5.8217]
[1739986281481,1.0,171.79,171.77,5.8217]
[1739986281880,1.0,171.8,171.77,5.8217]
[1739986283078,1.0,171.82,171.77,32.27870688]
[1739986283282,1.0,171.83,171.78,26.45700688]
[1739986283487,1.0,171.85,171.81,26.45700688]
[1739986283691,1.0,171.86,171.83,26.45700688]
[1739986283999,1.0,171.86,171.84,26.45700688]
[1739986285170,1.0,171.86,171.85,5.819]
[1739986285787,1.0,171.86,171.84,32.27630688]
[1739986287691,0.063,171.92,171.85,26.45700688]
[1739986287692,1.0,171.91,171.85,26.45700688]
[1739986287880,1.063,171.92,171.89,26.45700688]
[1739986288082,1.063,171.92,171.9,26.45700688]
[1739986288279,0.063,171.92,171.91,26.45700688]
[1739986288991,0.063,171.92,171.9,26.45700688]
[1739986289199,2.52004817,171.92,171.89,26.45700688]
[1739986289398,2.52004817,171.92,171.89,32.27460688]
[1739986289769,1.0,171.91,171.89,32.27460688]
[1739986289970,2.52004817,171.92,171.87,32.27510688]
[1739986290308,1.52004817,171.92,171.89,26.45700688]
[1739986290498,1.52004817,171.92,171.9,26.45700688]
[1739986290678,1.52004817,171.92,171.91,26.45700688]
[1739986291078,0.063,171.92,171.91,26.45700688]
[1739986291497,0.063,171.92,171.9,26.45700688]
[1739986291874,0.063,171.92,171.91,26.45700688]
[1739986292077,0.063,171.92,171.91,83.22119572]
[1739986292814,0.063,171.92,171.91,56.76418884]
[1739986293806,1.0,171.91,171.9,5.8172]
[1739986294372,1.0,171.89,171.86,5.8186]
[1739986294874,1.0,171.9,171.86,32.27560688]
[1739986295075,1.063,171.92,171.88,26.45700688]
[1739986295328,0.063,171.92,171.89,26.45700688]
[1739986295606,1.0,171.91,171.88,32.27470688]
[1739986295996,1.063,171.92,171.88,32.27470688]
[1739986296175,1.45715992,171.91,171.88,32.27470688]
[1739986297689,1.0,171.89,171.86,83.22119572]
[1739986298011,1.0,171.88,171.86,5.8186]
[1739986298308,1.0,171.87,171.84,26.45700688]
[1739986298610,1.0,171.86,171.84,5.8193]
[1739986298911,1.0,171.89,171.85,26.45700688]
[1739986299144,1.0,171.89,171.86,26.45700688]
[1739986299423,1.0,171.89,171.85,26.45700688]
[1739986299621,1.0,171.88,171.86,5.8186]
[1739986299817,1.0,171.87,171.85,5.8189]
[1739986300215,1.0,171.88,171.85,5.8189]
[1739986300522,1.0,171.89,171.85,5.8189]
[1739986300823,1.0,171.89,171.85,32.27590688]
[1739986301005,1.0,171.9,171.86,26.45700688]
[1739986301317,1.0,171.89,171.87,26.45700688]
[1739986301694,1.0,171.89,171.87,5.8183]
[1739986302821,1.0,171.88,171.86,5.8186]
[1739986303008,1.0,171.88,171.86,5.8486]
[1739986305229,1.0,171.89,171.86,32.30560688]
[1739986305809,0.063,171.92,171.86,32.30560688]
[1739986305810,1.063,171.92,171.88,26.45700688]
[1739986306002,0.063,171.92,171.9,26.45700688]
[1739986306929,1.063,171.92,171.9,26.45700688]
[1739986307098,1.063,171.92,171.89,26.45700688]
[1739986307299,0.063,171.92,171.89,26.45700688]
[1739986307611,1.063,171.92,171.9,5.8173]
[1739986308700,1.0,171.91,171.9,5.8173]
[1739986309445,1.0,171.91,171.87,26.45700688]
[1739986309737,1.0,171.91,171.88,5.818]
[1739986309939,1.0,171.9,171.88,5.818]
[1739986310640,1.0,171.89,171.86,62.61248884]
[1739986311125,1.0,171.88,171.86,5.8483]
[1739986312630,1.0,171.88,171.86,0.03]
[1739986312931,1.0,171.89,171.86,26.40258448]
[1739986313123,1.0,171.88,171.86,26.40258448]
[1739986313805,1.0,171.89,171.86,0.03]
[1739986314024,1.0,171.88,171.86,26.40258448]
[1739986314624,1.0,171.89,171.86,26.40258448]
[1739986314813,1.0,171.89,171.87,5.8183]
[1739986315214,1.0,171.88,171.87,5.8183]
[1739986315920,1.45726171,171.88,171.87,5.8183]
[1739986316117,2.45726171,171.88,171.87,5.8183]
[1739986316319,1.45726171,171.88,171.87,5.8183]
[1739986317438,2.45726171,171.89,171.87,5.8183]
[1739986318943,1.0,171.88,171.87,5.8183]
[1739986319145,1.0,171.88,171.86,5.8486]
[1739986319317,1.45726171,171.88,171.86,5.8486]
[1739986319819,1.45726171,171.88,171.86,32.22118448]
[1739986320437,1.45726171,171.88,171.87,26.37258448]
[1739986320945,0.063,171.92,171.87,26.37258448]
[1739986321250,0.063,171.92,171.9,26.37258448]
[1739986321822,1.063,171.92,171.9,26.37258448]
[1739986322145,1.0,171.9,171.87,83.13677332]
[1739986322450,1.0,171.88,171.87,56.76418884]
[1739986322751,26.37258448,171.9,171.86,0.03]
[1739986322752,1.0,171.87,171.86,0.03]
[1739986323720,46.02223334,171.87,171.86,0.03]
[1739986324324,144.34964886,171.86,171.77,0.03]
[1739986324519,1.0,171.78,171.77,0.03]
[1739986325040,1.0,171.81,171.77,26.40258448]
[1739986325216,1.0,171.78,171.77,0.03]
[1739986325630,1.0,171.78,171.77,26.40258448]
[1739986325840,1.0,171.79,171.77,26.40258448]
[1739986326318,1.0,171.81,171.78,26.37258448]
[1739986326622,1.0,171.85,171.8,26.37258448]
[1739986326925,1.0,171.84,171.83,26.37258448]
[1739986327449,1.0,171.85,171.83,26.37258448]
[1739986327627,1.0,171.87,171.84,26.37258448]
[1739986327815,1.0,171.87,171.85,26.37258448]
[1739986328150,1.0,171.86,171.85,26.37258448]
[1739986328721,1.0,171.86,171.84,32.19178448]
[1739986328928,128.02223334,171.91,171.8,58.29848884]
[1739986328929,1.0,171.84,171.83,5.8196]
[1739986329635,1.0,171.83,171.82,26.37258448]
[1739986329962,1.0,171.83,171.82,32.19248448]
[1739986330251,1.0,171.84,171.82,32.19248448]
[1739986330632,18.64964886,171.88,171.82,32.19248448]
[1739986330633,1.0,171.83,171.82,32.19248448]
[1739986331346,1.0,171.84,171.82,32.19248448]
[1739986332060,1.0,171.87,171.83,26.37258448]
[1739986332356,1.0,171.87,171.84,26.37258448]
[1739986332527,1.0,171.88,171.85,26.37258448]
[1739986332728,1.0,171.88,171.85,16.4823149]
[1739986333151,1.0,171.88,171.86,5.8186]
[1739986333621,1.0,171.87,171.86,5.8186]
[1739986333826,1.0,171.88,171.86,5.8186]
[1739986334559,1.0,171.88,171.86,22.3009149]
[1739986335363,1.0,171.87,171.86,22.3009149]
[1739986336061,1.0,171.87,171.86,5.8186]
[1739986338058,1.0,171.86,171.84,56.76418884]
[1739986338367,1.0,171.85,171.84,56.76418884]
[1739986338565,19.64964886,171.85,171.84,56.76418884]
[1739986338860,1.0,171.78,171.77,5.8516]
[1739986339750,1.0,171.8,171.77,22.3339149]
[1739986339941,1.0,171.8,171.79,16.4823149]
[1739986340441,1.0,171.8,171.79,22.3033149]
[1739986341272,1.0,171.79,171.77,22.3338149]
[1739986341572,1.0,171.78,171.77,0.03]
[1739986341759,19.64964886,171.78,171.77,0.03]
[1739986346151,1.0,171.78,171.77,0.03]
[1739986346350,1.0,171.79,171.77,16.5123149]
[1739986346565,1.0,171.79,171.78,5.8213]
[1739986347572,1.0,171.79,171.77,22.3340149]
[1739986347764,1.0,171.79,171.77,5.8517]
[1739986348071,1.0,171.78,171.77,0.03]
[1739986348263,19.64964886,171.78,171.77,0.03]
[1739986350241,1.0,171.78,171.77,0.03]
[1739986353649,19.64964886,171.78,171.77,0.03]
[1739986356674,1.0,171.78,171.77,0.03]
[1739986358060,1.0,171.8,171.77,16.5123149]
[1739986358368,1.0,171.79,171.77,0.03]
[1739986359145,1.0,171.78,171.77,0.03]
[1739986360660,1.0,171.78,171.77,16.5123149]
[1739986361974,1.0,171.78,171.77,22.3340149]
[1739986362964,1.0,171.79,171.77,22.3340149]
[1739986363276,1.0,171.78,171.77,22.3340149]
[1739986365286,1.0,171.78,171.77,5.8517]
[1739986368871,1.0,171.78,171.77,0.03]
[1739986369676,36.13196376,171.78,171.77,0.03]
[1739986374468,41.95326376,171.78,171.77,0.03]
[1739986374666,43.59795242,171.78,171.77,0.03]
[1739986374882,37.77665242,171.78,171.77,0.03]
[1739986375767,43.59795242,171.78,171.77,0.03]
[1739986380491,44.59795242,171.78,171.77,0.03]
[1739986381482,45.59795242,171.78,171.77,0.03]
[1739986382972,43.59795242,171.78,171.77,0.03]
[1739986383178,19.64964886,171.78,171.77,0.03]
[1739986383375,34.94025242,171.78,171.77,0.03]
[1739986384288,40.76155242,171.78,171.77,0.03]
[1739986385420,36.04155242,171.78,171.77,0.03]
[1739986385690,40.74155242,171.78,171.77,0.03]
[1739986386692,41.74155242,171.78,171.77,0.03]
[1739986387176,1.0,171.72,171.71,0.03]
[1739986387378,24.34964886,171.72,171.71,0.03]
[1739986388380,30.17304886,171.72,171.71,0.03]
[1739986392210,31.17304886,171.72,171.71,0.03]
[1739986392380,2.0,171.7,171.69,0.03]
[1739986392584,26.47374886,171.7,171.69,0.03]
[1739986393076,27.47374886,171.7,171.69,0.03]
[1739986393787,34.32674258,171.7,171.69,0.03]
[1739986394377,2.0,171.68,171.67,0.03]
[1739986394583,21.64964886,171.68,171.67,0.03]
[1739986394982,30.11894258,171.68,171.67,0.0001]
[1739986395903,30.11894258,171.68,171.59,0.03]
[1739986395904,1.0,171.6,171.59,0.03]
[1739986396085,30.15714886,171.6,171.59,0.03]
[1739986397405,39.18374886,171.6,171.59,0.03]
[1739986397807,1.0,171.58,171.47,5.8317]
[1739986397988,18.64964886,171.58,171.45,7.4116]
[1739986398189,18.64964886,171.57,171.45,7.4116]
[1739986399401,5.8286,171.57,171.45,7.4116]
[1739986399609,18.64964886,171.56,171.45,7.4116]
[1739986400499,24.47874886,171.56,171.45,7.4116]
[1739986400711,23.97874886,171.56,171.45,7.4116]
[1739986401806,10.14056647,171.55,171.45,7.4116]
[1739986401987,4.68,171.54,171.45,7.4116]
[1739986402188,83.0,171.53,171.45,7.4116]
[1739986402795,18.64964886,171.52,171.45,7.4116]
[1739986402995,83.0,171.53,171.45,21.9931]
[1739986403514,18.64964886,171.52,171.45,7.4116]
[1739986404097,82.9,171.53,171.45,7.4116]
[1739986404304,18.64964886,171.52,171.45,1.5792]
[1739986404914,18.64964886,171.5,171.45,1.5792]
[1739986405107,18.64964886,171.5,171.44,6.2071]
[1739986405317,101.54964886,171.5,171.44,6.2071]
[1739986405505,101.54964886,171.5,171.41,1.5626]
[1739986405706,24.48114886,171.48,171.41,1.5626]
[1739986406014,18.64964886,171.48,171.41,7.3964]
[1739986406604,18.64964886,171.48,171.41,0.03]
[1739986406605,18.64964886,171.46,171.41,0.03]
[1739986406908,18.64964886,171.44,171.41,0.03]
[1739986407300,18.64964886,171.42,171.41,0.03]
[1739986407598,18.64964886,171.44,171.41,0.03]
[1739986407932,24.48254886,171.44,171.41,0.03]
[1739986408296,26.48254886,171.44,171.41,0.03]
[1739986408499,25.48254886,171.44,171.41,0.03]
[1739986408721,24.48254886,171.44,171.41,0.03]
[1739986408923,83.0,171.43,171.41,0.03]
[1739986409922,4.7,171.45,171.41,0.03]
[1739986410506,18.64964886,171.44,171.41,0.03]
[1739986411116,18.64964886,171.46,171.41,0.03]
[1739986411798,83.0,171.5,171.42,8.0623]
[1739986411998,18.64964886,171.49,171.42,8.0623]
[1739986413704,18.64964886,171.49,171.43,5.8332]
[1739986414829,83.0,171.5,171.43,5.8332]
[1739986415017,4.7,171.51,171.43,86.5332]
[1739986415224,18.64964886,171.5,171.43,86.5332]
[1739986415917,83.0,171.53,171.43,101.1164]
[1739986416523,18.64964886,171.52,171.43,101.1164]
[1739986416823,88.8286,171.57,171.43,86.5332]
[1739986417024,2.29421793,171.58,171.43,86.5332]
[1739986417025,5.8282,171.58,171.46,6.4464]
[1739986417330,83.0,171.59,171.46,6.4464]
[1739986417838,83.0,171.59,171.47,20.4117]
[1739986418005,18.64964886,171.58,171.47,86.5319]
[1739986418405,23.93427805,171.58,171.47,80.7]
[1739986418947,83.0,171.57,171.46,12.2786]
[1739986419309,22.93427805,171.56,171.46,12.2786]
[1739986420132,27.63427805,171.56,171.46,12.2786]
[1739986420338,33.46327805,171.56,171.46,12.2786]
[1739986420739,27.63427805,171.56,171.46,12.2786]
[1739986421035,8.98462919,171.56,171.46,107.5592]
[1739986421440,4.28462919,171.56,171.46,107.5592]
[1739986421608,4.28462919,171.55,171.46,107.5592]
[1739986423626,4.28462919,171.57,171.46,107.5592]
[1739986426749,4.28462919,171.58,171.46,107.5592]
[1739986427319,10.11282919,171.58,171.46,107.5592]
[1739986428458,4.28462919,171.57,171.46,107.5592]
[1739986428756,18.64964886,171.56,171.46,12.2786]
[1739986428960,83.0,171.55,171.46,6.4464]
[1739986429254,226.24964886,171.54,171.46,6.4464]
[1739986429454,4.7,171.53,171.46,6.4464]
[1739986430486,4.7,171.53,171.45,7.3706]
[1739986430835,4.28462919,171.52,171.45,7.3706]
[1739986431219,4.28462919,171.52,171.45,21.9521]
[1739986431827,4.28462919,171.52,171.46,6.4986]
[1739986432056,4.28462919,171.52,171.47,1.5235]
[1739986432743,4.28462919,171.57,171.48,20.4104]
[1739986433457,18.64964886,171.56,171.47,7.3553]
[1739986433631,18.64964886,171.56,171.47,1.5235]
[1739986433823,83.0,171.55,171.47,1.5235]
[1739986434653,93.11392919,171.55,171.47,7.3553]
[1739986435043,87.28462919,171.55,171.47,7.3553]
[1739986436162,4.28462919,171.54,171.47,7.3553]
[1739986436945,4.28462919,171.54,171.47,1.5235]
[1739986436946,18.64964886,171.53,171.47,1.5235]
[1739986437462,87.28462919,171.54,171.47,7.3554]
[1739986437831,91.98462919,171.54,171.47,7.3554]
[1739986438134,4.28462919,171.52,171.47,7.3554]
[1739986440056,4.28462919,171.51,171.47,102.6352]
[1739986441258,4.28462919,171.5,171.47,102.6352]
[1739986443247,87.68,171.58,171.47,102.6352]
[1739986443450,93.5082,171.58,171.47,102.6352]
[1739986443949,83.0,171.58,171.47,103.6352]
[1739986445038,0.063,171.6,171.5,1.0]
[1739986445254,0.063,171.6,171.51,1.6202]
[1739986445561,0.063,171.6,171.52,20.4057]
[1739986445742,0.063,171.6,171.52,5.8302]
[1739986446579,0.063,171.6,171.51,7.4507]
[1739986447069,18.64964886,171.58,171.51,1.6202]
[1739986447236,18.64964886,171.56,171.47,1.6202]
[1739986447436,24.47914886,171.54,171.47,1.6202]
[1739986448247,83.0,171.55,171.47,7.452]
[1739986448663,88.8293,171.55,171.47,1.6202]
[1739986449277,18.64964886,171.54,171.47,1.6202]
[1739986449478,5.8298,171.53,171.47,1.6502]
[1739986451682,107.47924886,171.54,171.47,1.6502]
[1739986453985,16.56226323,171.51,171.47,0.03]
[1739986454344,83.0,171.53,171.47,0.03]
[1739986454345,16.56226323,171.52,171.47,0.03]
[1739986454668,83.0,171.53,171.48,16.56226323]
[1739986455775,18.64964886,171.5,171.47,0.03]
[1739986456076,16.56226323,171.48,171.47,0.03]
[1739986456248,16.56226323,171.49,171.47,0.03]
[1739986456448,16.56226323,171.48,171.47,0.03]
[1739986456752,35.21191209,171.48,171.47,0.03]
[1739986457765,41.04341209,171.48,171.47,0.03]
[1739986458449,43.04341209,171.48,171.47,0.03]
[1739986460587,37.21191209,171.47,171.46,0.03]
[1739986461183,36.21191209,171.47,171.46,0.03]
[1739986461590,37.21191209,171.47,171.46,0.03]
[1739986462612,2.0,171.43,171.31,5.8372]
[1739986462771,2.0,171.43,171.32,16.56226323]
[1739986462772,16.56226323,171.38,171.32,16.56226323]
[1739986462955,35.21191209,171.39,171.32,16.56226323]
[1739986463152,4.68,171.42,171.31,5.8372]
[1739986463356,4.68,171.42,171.31,86.5372]
[1739986464171,18.64964886,171.41,171.31,86.5372]
[1739986464380,21.24226323,171.42,171.36,16.56226323]
[1739986464966,4.68,171.42,171.37,16.56226323]
[1739986465790,27.07586323,171.42,171.36,16.56226323]
[1739986465996,21.24226323,171.42,171.36,16.56226323]
[1739986466561,21.24226323,171.42,171.36,22.39766323]
[1739986466766,4.68,171.42,171.37,16.56226323]
[1739986467586,106.30964886,171.44,171.39,16.56226323]
[1739986468019,106.30964886,171.44,171.4,16.56226323]
[1739986468285,4.66,171.45,171.4,16.56226323]
[1739986468598,39.87191209,171.45,171.39,16.56226323]
[1739986468773,16.56226323,171.43,171.37,7.402]
[1739986468977,16.56226323,171.41,171.37,1.5668]
[1739986469485,16.56226323,171.42,171.36,16.56226323]
[1739986470696,18.64964886,171.41,171.36,16.56226323]
[1739986470897,18.64964886,171.39,171.34,16.56226323]
[1739986471109,39.87191209,171.39,171.33,103.09876323]
[1739986471397,4.66,171.39,171.35,16.56226323]
[1739986473897,10.4948,171.39,171.34,16.56226323]
[1739986474397,4.66,171.39,171.36,16.56226323]
[1739986474595,24.48354886,171.41,171.36,16.56226323]
[1739986475399,41.04581209,171.41,171.35,16.59226323]
[1739986475695,83.0,171.43,171.39,16.56226323]
[1739986475866,83.0,171.43,171.41,16.56226323]
[1739986476073,18.64964886,171.44,171.4,16.56226323]
[1739986476376,18.64964886,171.44,171.36,16.56226323]
[1739986476377,18.64964886,171.44,171.39,16.56226323]
[1739986476580,18.64964886,171.44,171.36,5.8354]
[1739986476581,4.64,171.45,171.36,5.8354]
[1739986476785,10.4727,171.45,171.36,86.5354]
[1739986476995,4.64,171.45,171.4,16.56226323]
[1739986477302,10.4726,171.45,171.4,16.56226323]
[1739986478792,4.64,171.45,171.4,16.56226323]
[1739986479699,5.8326,171.45,171.4,16.56226323]
[1739986480699,124.04421209,171.46,171.4,22.39646323]
[1739986480881,128.70421209,171.46,171.4,22.39646323]
[1739986481072,112.14194886,171.46,171.41,16.56226323]
[1739986481786,106.30964886,171.46,171.41,16.56226323]
[1739986482506,83.0,171.46,171.41,5.8338]
[1739986482678,88.8309,171.5,171.45,16.56226323]
[1739986482872,4.64,171.49,171.45,16.56226323]
[1739986483081,4.64,171.49,171.46,16.56226323]
[1739986483497,4.64,171.49,171.45,16.56226323]
[1739986484877,4.64,171.49,171.45,22.39466323]
[1739986485073,4.64,171.49,171.46,16.56226323]
[1739986486916,35.21191209,171.51,171.45,16.56226323]
[1739986487089,39.83191209,171.51,171.45,16.56226323]
[1739986487408,0.063,171.49,171.45,16.56226323]
[1739986488111,0.063,171.49,171.45,22.39446323]
[1739986488903,0.063,171.49,171.46,16.56226323]
[1739986489310,0.063,171.49,171.48,16.56226323]
[1739986490083,0.063,171.49,171.48,22.39376323]
[1739986491015,0.063,171.49,171.48,16.56226323]
[1739986491218,0.063,171.49,171.47,16.56226323]
[1739986492419,0.063,171.49,171.47,22.39386323]
[1739986494499,0.063,171.49,171.47,16.56226323]
[1739986495610,0.063,171.49,171.47,22.39416323]
[1739986495784,0.063,171.49,171.48,16.56226323]
[1739986496512,0.063,171.49,171.48,22.39376323]
[1739986498192,0.063,171.49,171.48,110.88606323]
[1739986500545,0.063,171.53,171.48,125.46496323]
[1739986500703,0.063,171.53,171.52,16.56226323]
[1739986500904,0.063,171.53,171.52,97.26226323]
[1739986501233,0.063,171.53,171.52,80.7]
[1739986501940,0.063,171.53,171.48,16.56226323]
[1739986502124,0.063,171.53,171.46,86.532]
[1739986502125,16.56226323,171.52,171.46,16.56226323]
[1739986502318,16.56226323,171.51,171.45,22.39476323]
[1739986502623,16.56226323,171.49,171.44,80.7]
[1739986503444,16.56226323,171.49,171.44,86.5329]
[1739986503608,16.56226323,171.5,171.44,103.09516323]
[1739986504043,83.0,171.52,171.49,16.56226323]
[1739986504353,0.063,171.53,171.49,16.56226323]
[1739986504512,0.063,171.53,171.5,16.56226323]
[1739986504713,0.063,171.53,171.52,16.56226323]
[1739986505596,0.063,171.53,171.52,97.26226323]
[1739986506030,0.063,171.6,171.52,119.65472646]
[1739986506215,0.063,171.6,171.59,16.56226323]
[1739986506426,0.063,171.6,171.56,16.56226323]
[1739986507137,0.063,171.6,171.57,16.56226323]
[1739986508131,0.063,171.6,171.58,16.56226323]
[1739986508334,0.063,171.6,171.56,16.56226323]
[1739986509222,0.063,171.6,171.57,16.56226323]
[1739986509945,0.063,171.6,171.59,16.56226323]
[1739986510233,0.063,171.6,171.59,103.09006323]
[1739986512549,0.063,171.67,171.59,117.65966323]
[1739986512757,0.063,171.67,171.65,16.56226323]
[1739986513758,0.063,171.67,171.66,16.56226323]
[1739986514328,0.063,171.67,171.66,97.26226323]
[1739986516040,0.0001,171.67,171.66,104.69566323]
[1739986516954,0.063,171.71,171.66,121.25926323]
[1739986517148,0.063,171.71,171.7,16.56226323]
[1739986517342,0.063,171.73,171.7,113.82452646]
[1739986517536,0.063,171.73,171.72,33.12452646]
[1739986517858,0.063,171.73,171.72,38.94792646]
[1739986518235,0.063,171.78,171.72,120.64792646]
[1739986518429,0.063,171.78,171.77,16.56226323]
[1739986518630,0.063,171.78,171.77,97.26226323]
[1739986519756,0.063,171.78,171.77,103.08396323]
[1739986521555,0.063,171.78,171.77,97.26226323]
[1739986521724,0.063,171.78,171.77,80.7]
[1739986521926,0.063,171.78,171.74,16.56226323]
[1739986522158,16.62526323,171.78,171.72,97.26226323]
[1739986522321,18.64964886,171.77,171.72,97.26226323]
[1739986522527,16.56226323,171.75,171.7,80.7]
[1739986523329,18.64964886,171.75,171.71,16.56226323]